[Event "Turkish Club Cup 2019"]
[Site "Konya"]
[Date "2019.07.16"]
[Round "1"]
[White "Cilekaya, Esma Nur"]
[Black "Yorgun, Yaren Naz"]
[Result "0-1"]
[ECO "C01"]
[WhiteElo "1325"]
[BlackElo "1819"]
[Annotator "NA"]
[PlyCount "98"]
[EventDate "2019.07.16"]
[EventType "team-tourn"]
[EventCountry "TUR"]
[SourceTitle "playchess.com"]
[Source "ChessBase"]
[SourceQuality "1"]
[TimeControl "5400+30"]

1. e4 {[%emt 0:00:30]} e6 {[%emt 0:00:30]} 2. Nc3 {[%emt 0:00:00]} d5 {[%emt 0:00:30]} 3. exd5 {[%emt 0:00:00]} exd5 {[%emt 0:00:30]} 4. Nf3 {[%emt 0:00:30]} Nf6 {[%emt 0:03:30]} 5. d4 {[%emt 0:04:30]} Be7 {[%emt 0:02:30]} 6. Bd3 {[%emt 0:01:30]} Bg4 {[%emt 0:01:30]} 7. Qe2 {[%emt 0:01:30]} O-O {[%emt 0:01:30]} 8. Be3 {[%emt 0:03:30]} Bb4 {[%emt 0:04:30]} 9. Qd2 {[%emt 0:04:30]} c5 {[%emt 0:18:30]} 10. Ne5 {[%emt 0:13:30]} Nc6 {[%emt 0:26:30]} 11. Nxg4 {[%emt 0:08:30]} Nxg4 {[%emt 0:00:30]} 12. Be2 {[%emt 0:01:30]} Nxe3 {[%emt 0:01:30]} 13. fxe3 {[%emt 0:00:30]} cxd4 {[%emt 0:02:30]} 14. exd4 {[%emt 0:00:30]} Qh4+ {[%emt 0:01:30]} 15. g3 {[%emt 0:00:30]} Qxd4 {[%emt 0:00:00]} 16. O-O-O {[%emt 0:01:30]} Qxd2+ {[%emt 0:00:00]} 17. Rxd2 {[%emt 0:00:30]} d4 {[%emt 0:00:30]} 18. Nb5 {[%emt 0:03:30]} Bxd2+ {[%emt 0:00:30]} 19. Kxd2 {[%emt 0:00:30]} a6 {[%emt 0:00:30]} 20. Nd6 {[%emt 0:00:00]} Rab8 {[%emt 0:01:30]} 21. Bf3 {[%emt 0:01:00]} Ne5 {[%emt 0:03:30]} 22. Bxb7 {[%emt 0:01:30]} Rfd8 {[%emt 0:00:30]} 23. Re1 {[%emt 0:01:30]} Nf3+ {[%emt 0:00:30]} 24. Bxf3 {[%emt 0:00:00]} Rxd6 {[%emt 0:00:00]} 25. b3 {[%emt 0:01:00]} Rf6 {[%emt 0:03:00]} 26. Be2 {[%emt 0:00:30]} Rf2 {[%emt 0:03:30]} 27. h4 {[%emt 0:00:30]} Re8 {[%emt 0:01:30]} 28. Kd3 {[%emt 0:03:30]} a5 {[%emt 0:00:30]} 29. a3 {[%emt 0:00:30]} Re3+ {[%emt 0:02:53]} 30. Kd2 {[%emt 0:10:30]} Kf8 {[%emt 0:04:06]} 31. Kd1 {[%emt 0:00:30]} g6 {[%emt 0:01:10]} 32. g4 {[%emt 0:00:30]} Ke7 {[%emt 0:00:24]} 33. h5 {[%emt 0:02:30]} Kd6 {[%emt 0:00:39]} 34. Bd3 {[%emt 0:03:30]} Rxe1+ {[%emt 0:04:10]} 35. Kxe1 {[%emt 0:00:30]} Rg2 {[%emt 0:00:10]} 36. hxg6 {[%emt 0:00:00]} fxg6 {[%emt 0:00:42]} 37. Be2 {[%emt 0:00:00]} Rg1+ {[%emt 0:01:39]} 38. Kd2 {[%emt 0:00:30]} Kc5 {[%emt 0:02:13]} 39. c3 {[%emt 0:13:30]} dxc3+ {[%emt 0:02:18]} 40. Kxc3 {[%emt 0:00:30]} Rg3+ {[%emt 0:01:10]} 41. Kc2 {[%emt 0:00:00]} Rh3 {[%emt 0:01:01]} 42. b4+ {[%emt 0:00:00]} axb4 {[%emt 0:00:30]} 43. axb4+ {[%emt 0:00:30]} Kxb4 {[%emt 0:00:30]} 44. Kd2 {[%emt 0:00:30]} Kc5 {[%emt 0:02:00]} 45. Ke1 {[%emt 0:05:43]} Kd4 {[%emt 0:00:09]} 46. Kf1 {[%emt 0:00:00]} Re3 {[%emt 0:00:51]} 47. Bd1 {[%emt 0:01:47]} Ke4 {[%emt 0:00:06]} 48. Kf2 {[%emt 0:02:07]} Kf4 {[%emt 0:00:01]} 49. Ba4 {[%emt 0:03:40]} Rg3 {[%emt 0:00:55]} 0-1

[Event "Turkish Club Cup 2019"]
[Site "Konya"]
[Date "2019.07.16"]
[Round "1"]
[White "Karatas, Mehmet Salih"]
[Black "Pasa, Ahmet"]
[Result "1/2-1/2"]
[ECO "A48"]
[WhiteElo "1312"]
[BlackElo "1500"]
[Annotator "NA"]
[PlyCount "80"]
[EventDate "2019.07.16"]
[EventType "team-tourn"]
[EventCountry "TUR"]
[SourceTitle "playchess.com"]
[Source "ChessBase"]
[SourceQuality "1"]
[TimeControl "5400+30"]

1. d4 {[%emt 0:00:30]} Nf6 {[%emt 0:00:30]} 2. Nf3 {[%emt 0:00:00]} g6 {[%emt 0:00:00]} 3. Bf4 {[%emt 0:01:00]} d6 {[%emt 0:01:00]} 4. e3 {[%emt 0:02:30]} Bg7 {[%emt 0:00:00]} 5. h3 {[%emt 0:01:30]} O-O {[%emt 0:01:00]} 6. Bc4 {[%emt 0:04:30]} c6 {[%emt 0:03:30]} 7. O-O {[%emt 0:11:30]} b5 {[%emt 0:08:30]} 8. Bb3 {[%emt 0:02:30]} a5 {[%emt 0:01:30]} 9. a3 {[%emt 0:06:30]} Ba6 {[%emt 0:04:30]} 10. Re1 {[%emt 0:06:30]} Nbd7 {[%emt 0:03:30]} 11. Nbd2 {[%emt 0:06:30]} c5 {[%emt 0:03:30]} 12. c3 {[%emt 0:08:30]} h6 {[%emt 0:36:30]} 13. Bh2 {[%emt 0:07:30]} Bb7 {[%emt 0:05:30]} 14. e4 {[%emt 0:06:30]} b4 {[%emt 0:08:55]} 15. axb4 {[%emt 0:07:30]} axb4 {[%emt 0:00:20]} 16. Qc2 {[%emt 0:03:30]} Rc8 {[%emt 0:07:14]} 17. Qd3 {[%emt 0:06:00]} bxc3 {[%emt 0:02:37]} 18. bxc3 {[%emt 0:00:52]} cxd4 {[%emt 0:01:23]} 19. cxd4 {[%emt 0:01:04]} d5 {[%emt 0:03:20]} 20. exd5 {[%emt 0:01:43]} Bxd5 {[%emt 0:01:20]} 21. Bxd5 {[%emt 0:03:34]} Nxd5 {[%emt 0:00:06]} 22. Ne4 {[%emt 0:00:46]} Nb4 {[%emt 0:00:43]} 23. Qb5 {[%emt 0:01:51]} Nc2 {[%emt 0:00:52]} 24. Ne5 {[%emt 0:02:58]} Nxe5 {[%emt 0:00:54]} 25. Bxe5 {[%emt 0:00:34]} Bxe5 {[%emt 0:00:30]} 26. Qxe5 {[%emt 0:01:07]} Nxa1 {[%emt 0:00:30]} 27. Rxa1 {[%emt 0:00:00]} Qc7 {[%emt 0:00:24]} 28. Qb5 {[%emt 0:01:12]} Rfd8 {[%emt 0:01:15]} 29. Qb4 {[%emt 0:00:56]} Rb8 {[%emt 0:01:16]} 30. Qd2 {[%emt 0:00:34]} Qb6 {[%emt 0:00:48]} 31. Rd1 {[%emt 0:00:54]} f5 {[%emt 0:02:23]} 32. Nc5 {[%emt 0:01:04]} Rbc8 {[%emt 0:00:33]} 33. Qa2+ {[%emt 0:00:34]} Kh7 {[%emt 0:00:14]} 34. Qf7+ {[%emt 0:00:47]} Kh8 {[%emt 0:00:18]} 35. Ne6 {[%emt 0:00:00]} Rg8 {[%emt 0:00:35]} 36. Qxe7 {[%emt 0:00:13]} Qb3 {[%emt 0:00:58]} 37. Qf6+ {[%emt 0:00:30]} Kh7 {[%emt 0:00:30]} 38. Qf7+ {[%emt 0:00:30]} Kh8 {[%emt 0:00:30]} 39. Qf6+ {[%emt 0:00:30]} Kh7 {[%emt 0:00:30]} 40. Qf7+ {[%emt 0:00:30]} Kh8 {[%emt 0:00:00]} 1/2-1/2

[Event "Turkish Club Cup 2019"]
[Site "Konya"]
[Date "2019.07.16"]
[Round "1"]
[White "Bas, Selin"]
[Black "Mertoglu, Sukran"]
[Result "1/2-1/2"]
[ECO "D02"]
[WhiteElo "1286"]
[BlackElo "1282"]
[Annotator "NA"]
[PlyCount "164"]
[EventDate "2019.07.16"]
[EventType "team-tourn"]
[EventCountry "TUR"]
[SourceTitle "playchess.com"]
[Source "ChessBase"]
[SourceQuality "1"]
[TimeControl "5400+30"]

1. d4 {[%emt 0:00:30]} d5 {[%emt 0:00:30]} 2. Bf4 {[%emt 0:00:00]} Nf6 {[%emt 0:00:30]} 3. Nf3 {[%emt 0:00:00]} e6 {[%emt 0:02:30]} 4. e3 {[%emt 0:00:00]} c5 {[%emt 0:00:30]} 5. c3 {[%emt 0:00:00]} Nc6 {[%emt 0:04:30]} 6. Bd3 {[%emt 0:00:30]} Bd7 {[%emt 0:04:30]} 7. Nbd2 {[%emt 0:00:30]} Nh5 {[%emt 0:05:30]} 8. Bg5 {[%emt 0:03:30]} Nf6 {[%emt 0:01:30]} 9. Ne5 {[%emt 0:03:30]} Be7 {[%emt 0:03:30]} 10. Bf4 {[%emt 0:02:30]} cxd4 {[%emt 0:06:30]} 11. exd4 {[%emt 0:00:30]} O-O {[%emt 0:02:30]} 12. Qf3 {[%emt 0:02:30]} g6 {[%emt 0:23:30]} 13. g4 {[%emt 0:24:30]} Ne8 {[%emt 0:04:30]} 14. Qh3 {[%emt 0:16:30]} Nxe5 {[%emt 0:02:30]} 15. dxe5 {[%emt 0:01:30]} Bg5 {[%emt 0:00:30]} 16. Bg3 {[%emt 0:04:30]} Bxd2+ {[%emt 0:03:30]} 17. Kxd2 {[%emt 0:00:30]} Bc6 {[%emt 0:02:30]} 18. Rhf1 {[%emt 0:11:30]} Qb6 {[%emt 0:08:30]} 19. Rab1 {[%emt 0:04:30]} Bb5 {[%emt 0:01:54]} 20. Bh4 {[%emt 0:02:30]} f6 {[%emt 0:01:39]} 21. exf6 {[%emt 0:04:22]} Nxf6 {[%emt 0:00:16]} 22. Bxf6 {[%emt 0:01:00]} Rxf6 {[%emt 0:00:10]} 23. Bxb5 {[%emt 0:00:04]} Qxb5 {[%emt 0:00:56]} 24. Qd3 {[%emt 0:01:39]} Qc5 {[%emt 0:05:51]} 25. Qe3 {[%emt 0:02:45]} Qd6 {[%emt 0:02:35]} 26. f4 {[%emt 0:01:12]} b6 {[%emt 0:02:11]} 27. Qe5 {[%emt 0:00:46]} Qe7 {[%emt 0:01:51]} 28. f5 {[%emt 0:02:14]} Rc8 {[%emt 0:01:55]} 29. Rbe1 {[%emt 0:01:21]} Rcf8 {[%emt 0:01:22]} 30. Rg1 {[%emt 0:00:55]} Qd7 {[%emt 0:01:17]} 31. fxe6 {[%emt 0:00:42]} Qe7 {[%emt 0:02:44]} 32. Kc1 {[%emt 0:01:06]} Re8 {[%emt 0:01:04]} 33. Qxd5 {[%emt 0:00:35]} Rxe6 {[%emt 0:00:52]} 34. Rxe6 {[%emt 0:00:52]} Qxe6 {[%emt 0:00:30]} 35. Qxe6+ {[%emt 0:00:30]} Rxe6 {[%emt 0:00:00]} 36. Kd2 {[%emt 0:00:54]} Kf7 {[%emt 0:00:00]} 37. Rf1+ {[%emt 0:00:42]} Ke7 {[%emt 0:00:07]} 38. Rf3 {[%emt 0:00:22]} Rd6+ {[%emt 0:00:33]} 39. Rd3 {[%emt 0:00:21]} Rf6 {[%emt 0:00:14]} 40. Ke2 {[%emt 0:00:32]} g5 {[%emt 0:00:24]} 41. Re3+ {[%emt 0:00:29]} Kd7 {[%emt 0:00:30]} 42. Rf3 {[%emt 0:00:42]} Re6+ {[%emt 0:00:30]} 43. Kd2 {[%emt 0:00:00]} Re7 {[%emt 0:01:02]} 44. Rf5 {[%emt 0:00:45]} Rg7 {[%emt 0:01:39]} 45. Kd3 {[%emt 0:00:21]} Ke6 {[%emt 0:00:00]} 46. Ke4 {[%emt 0:00:34]} h6 {[%emt 0:01:19]} 47. Re5+ {[%emt 0:00:36]} Kf6 {[%emt 0:00:28]} 48. Kd4 {[%emt 0:01:17]} Rd7+ {[%emt 0:00:18]} 49. Rd5 {[%emt 0:00:07]} Re7 {[%emt 0:00:13]} 50. Rd6+ {[%emt 0:00:12]} Kg7 {[%emt 0:00:03]} 51. Kd3 {[%emt 0:01:13]} Rf7 {[%emt 0:00:11]} 52. b3 {[%emt 0:00:26]} Rf3+ {[%emt 0:00:49]} 53. Kc4 {[%emt 0:00:55]} Rf4+ {[%emt 0:00:13]} 54. Rd4 {[%emt 0:00:00]} Rf7 {[%emt 0:01:01]} 55. Kb5 {[%emt 0:00:54]} Re7 {[%emt 0:00:26]} 56. Kc6 {[%emt 0:00:43]} Re6+ {[%emt 0:01:27]} 57. Rd6 {[%emt 0:00:16]} Re2 {[%emt 0:00:30]} 58. Rd7+ {[%emt 0:00:12]} Kf6 {[%emt 0:00:04]} 59. Rxa7 {[%emt 0:00:20]} Rxh2 {[%emt 0:00:08]} 60. Kxb6 {[%emt 0:00:52]} Rg2 {[%emt 0:00:33]} 61. c4 {[%emt 0:02:02]} Rxg4 {[%emt 0:00:10]} 62. c5 {[%emt 0:00:10]} Rb4+ {[%emt 0:01:57]} 63. Ka5 {[%emt 0:00:37]} Rb8 {[%emt 0:00:33]} 64. c6 {[%emt 0:01:12]} g4 {[%emt 0:00:25]} 65. c7 {[%emt 0:01:14]} Rc8 {[%emt 0:00:34]} 66. Ra6+ {[%emt 0:00:10]} Kg5 {[%emt 0:00:12]} 67. Rc6 {[%emt 0:00:23]} g3 {[%emt 0:00:14]} 68. Kb6 {[%emt 0:00:20]} h5 {[%emt 0:00:57]} 69. Kb7 {[%emt 0:00:39]} Rxc7+ {[%emt 0:00:32]} 70. Rxc7 {[%emt 0:00:32]} Kg4 {[%emt 0:00:33]} 71. a4 {[%emt 0:00:55]} h4 {[%emt 0:00:41]} 72. a5 {[%emt 0:00:33]} h3 {[%emt 0:00:24]} 73. a6 {[%emt 0:01:26]} h2 {[%emt 0:00:12]} 74. Rh7 {[%emt 0:00:12]} g2 {[%emt 0:00:53]} 75. Rg7+ {[%emt 0:01:13]} Kh3 {[%emt 0:00:09]} 76. Rh7+ {[%emt 0:00:23]} Kg3 {[%emt 0:00:14]} 77. Rg7+ {[%emt 0:00:47]} Kf2 {[%emt 0:00:19]} 78. Rxg2+ {[%emt 0:00:54]} Kxg2 {[%emt 0:00:02]} 79. a7 {[%emt 0:00:04]} h1=Q {[%emt 0:00:16]} 80. a8=Q {[%emt 0:00:06]} Kf2+ {[%emt 0:00:57]} 81. Kb8 {[%emt 0:00:23]} Qh8+ {[%emt 0:00:29]} 82. Ka7 {[%emt 0:00:18]} Qd4+ {[%emt 0:00:13]} 1/2-1/2

[Event "Turkish Club Cup 2019"]
[Site "Konya"]
[Date "2019.07.16"]
[Round "1"]
[White "Cankurt, Busra"]
[Black "Temel, Burcu Melis"]
[Result "0-1"]
[ECO "B22"]
[WhiteElo "1262"]
[BlackElo "1790"]
[Annotator "NA"]
[PlyCount "71"]
[EventDate "2019.07.16"]
[EventType "team-tourn"]
[EventCountry "TUR"]
[SourceTitle "playchess.com"]
[Source "ChessBase"]
[SourceQuality "1"]
[TimeControl "5400+30"]

1. e4 {[%emt 0:00:30]} c5 {[%emt 0:00:30]} 2. Nf3 {[%emt 0:00:30]} Nc6 {[%emt 0:00:30]} 3. c3 {[%emt 0:00:00]} d5 {[%emt 0:00:30]} 4. exd5 {[%emt 0:01:00]} Qxd5 {[%emt 0:00:00]} 5. b3 {[%emt 0:00:30]} e6 {[%emt 0:03:00]} 6. Bc4 {[%emt 0:01:30]} Qd7 {[%emt 0:00:30]} 7. O-O {[%emt 0:00:30]} a6 {[%emt 0:00:00]} 8. a4 {[%emt 0:01:30]} Nf6 {[%emt 0:00:00]} 9. d4 {[%emt 0:02:30]} cxd4 {[%emt 0:00:30]} 10. Nxd4 {[%emt 0:01:30]} Ne5 {[%emt 0:04:30]} 11. Nd2 {[%emt 0:03:30]} Bc5 {[%emt 0:06:30]} 12. Bb2 {[%emt 0:02:30]} O-O {[%emt 0:01:30]} 13. Re1 {[%emt 0:02:30]} Qc7 {[%emt 0:03:30]} 14. h3 {[%emt 0:02:30]} Ng6 {[%emt 0:06:30]} 15. N2f3 {[%emt 0:01:30]} e5 {[%emt 0:00:30]} 16. Ne2 {[%emt 0:03:30]} Ne4 {[%emt 0:04:30]} 17. Rf1 {[%emt 0:02:30]} Qb6 {[%emt 0:15:30]} 18. Qe1 {[%emt 0:10:30]} Qf6 {[%emt 0:02:30]} 19. Bd3 {[%emt 0:02:30]} Bf5 {[%emt 0:02:30]} 20. Nh2 {[%emt 0:08:30]} Nxf2 {[%emt 0:04:30]} 21. Rxf2 {[%emt 0:04:30]} Bxf2+ {[%emt 0:06:30]} 22. Qxf2 {[%emt 0:01:30]} Bxd3 {[%emt 0:00:00]} 23. Qxf6 {[%emt 0:01:30]} gxf6 {[%emt 0:00:00]} 24. Ng3 {[%emt 0:00:00]} f5 {[%emt 0:00:30]} 25. c4 {[%emt 0:01:00]} Rad8 {[%emt 0:02:30]} 26. Re1 {[%emt 0:01:30]} f6 {[%emt 0:00:30]} 27. Nf3 {[%emt 0:00:30]} f4 {[%emt 0:01:30]} 28. Ne4 {[%emt 0:01:30]} Bc2 {[%emt 0:01:30]} 29. Nc5 {[%emt 0:01:30]} Rf7 {[%emt 0:00:00]} 30. Rc1 {[%emt 0:01:30]} Rd1+ {[%emt 0:00:00]} 31. Rxd1 {[%emt 0:00:30]} Bxd1 {[%emt 0:00:30]} 32. a5 {[%emt 0:01:30]} Bxf3 {[%emt 0:02:30]} 33. gxf3 {[%emt 0:00:00]} Nh4 {[%emt 0:00:30]} 34. Kf2 {[%emt 0:00:00]} Rg7 {[%emt 0:00:00]} 35. Ne4 {[%emt 0:00:30]} Rg2+ {[%emt 0:00:00]} 36. Kf1 {[%emt 0:01:30]} 0-1

[Event "Turkish Club Cup 2019"]
[Site "Konya"]
[Date "2019.07.16"]
[Round "1"]
[White "Zeycan, Alara"]
[Black "Yalcin, Sudenaz"]
[Result "0-1"]
[ECO "A47"]
[WhiteElo "1252"]
[BlackElo "1371"]
[Annotator "NA"]
[PlyCount "104"]
[EventDate "2019.07.16"]
[EventType "team-tourn"]
[EventCountry "TUR"]
[SourceTitle "playchess.com"]
[Source "ChessBase"]
[SourceQuality "1"]
[TimeControl "5400+30"]

1. d4 {[%emt 0:00:30]} Nf6 {[%emt 0:00:30]} 2. e3 {[%emt 0:00:30]} d6 {[%emt 0:00:00]} 3. Bd3 {[%emt 0:00:00]} g6 {[%emt 0:00:00]} 4. Nf3 {[%emt 0:00:00]} Bg7 {[%emt 0:00:00]} 5. O-O {[%emt 0:00:30]} O-O {[%emt 0:00:00]} 6. c3 {[%emt 0:00:30]} Nbd7 {[%emt 0:00:30]} 7. Nbd2 {[%emt 0:00:30]} c5 {[%emt 0:01:30]} 8. Re1 {[%emt 0:00:30]} b6 {[%emt 0:00:30]} 9. e4 {[%emt 0:04:30]} Bb7 {[%emt 0:03:30]} 10. e5 {[%emt 0:02:30]} Nd5 {[%emt 0:03:30]} 11. exd6 {[%emt 0:02:30]} exd6 {[%emt 0:00:00]} 12. dxc5 {[%emt 0:03:30]} dxc5 {[%emt 0:02:00]} 13. Nc4 {[%emt 0:05:30]} N7f6 {[%emt 0:00:30]} 14. Bg5 {[%emt 0:00:30]} Qc7 {[%emt 0:02:30]} 15. Nce5 {[%emt 0:02:30]} Rad8 {[%emt 0:05:30]} 16. Qa4 {[%emt 0:04:30]} Rc8 {[%emt 0:09:30]} 17. Rad1 {[%emt 0:02:30]} a6 {[%emt 0:04:30]} 18. c4 {[%emt 0:04:30]} Nb4 {[%emt 0:01:30]} 19. Bxf6 {[%emt 0:00:30]} b5 {[%emt 0:08:30]} 20. cxb5 {[%emt 0:01:30]} Bxf6 {[%emt 0:00:00]} 21. Be4 {[%emt 0:09:30]} Bxe5 {[%emt 0:04:00]} 22. Nxe5 {[%emt 0:00:30]} Bxe4 {[%emt 0:00:30]} 23. Rxe4 {[%emt 0:00:30]} Qb7 {[%emt 0:01:30]} 24. Rf4 {[%emt 0:03:30]} axb5 {[%emt 0:02:30]} 25. Qb3 {[%emt 0:00:30]} Qe7 {[%emt 0:00:30]} 26. Nd7 {[%emt 0:11:30]} Rfd8 {[%emt 0:01:30]} 27. Nf6+ {[%emt 0:04:30]} Kg7 {[%emt 0:02:30]} 28. h3 {[%emt 0:14:30]} c4 {[%emt 0:01:30]} 29. Qf3 {[%emt 0:00:30]} Nd3 {[%emt 0:02:30]} 30. Nd5 {[%emt 0:06:43]} Rxd5 {[%emt 0:01:30]} 31. Qxd5 {[%emt 0:00:16]} Nxf4 {[%emt 0:00:30]} 32. Qxb5 {[%emt 0:00:37]} Rc5 {[%emt 0:01:30]} 33. Qb4 {[%emt 0:01:33]} Qg5 {[%emt 0:00:30]} 34. Qc3+ {[%emt 0:00:28]} Re5 {[%emt 0:00:30]} 35. Qf3 {[%emt 0:01:05]} Nd3 {[%emt 0:01:30]} 36. g4 {[%emt 0:04:50]} Rf5 {[%emt 0:02:30]} 37. Qe4 {[%emt 0:03:58]} Rf4 {[%emt 0:01:30]} 38. Qe3 {[%emt 0:01:20]} Qf6 {[%emt 0:01:30]} 39. Rd2 {[%emt 0:01:05]} Rf3 {[%emt 0:01:30]} 40. g5 {[%emt 0:00:48]} Qf5 {[%emt 0:00:30]} 41. Qd4+ {[%emt 0:00:12]} Ne5 {[%emt 0:00:30]} 42. Re2 {[%emt 0:00:26]} Qxg5+ {[%emt 0:00:30]} 43. Kf1 {[%emt 0:00:06]} Rf5 {[%emt 0:00:30]} 44. a4 {[%emt 0:00:53]} Qc1+ {[%emt 0:01:30]} 45. Re1 {[%emt 0:00:08]} Qg5 {[%emt 0:00:00]} 46. Re2 {[%emt 0:00:09]} f6 {[%emt 0:01:00]} 47. h4 {[%emt 0:01:56]} Qc1+ {[%emt 0:01:30]} 48. Kg2 {[%emt 0:00:19]} Qf4 {[%emt 0:01:30]} 49. Re4 {[%emt 0:00:20]} Qf3+ {[%emt 0:00:30]} 50. Kg1 {[%emt 0:00:19]} Qb3 {[%emt 0:02:30]} 51. Qa7+ {[%emt 0:00:28]} Kh6 {[%emt 0:00:30]} 52. Qc5 {[%emt 0:00:56]} Nf3+ {[%emt 0:00:30]} 0-1

[Event "Turkish Club Cup 2019"]
[Site "Konya"]
[Date "2019.07.16"]
[Round "1"]
[White "Ekmekcioglu, Gokdeniz"]
[Black "Yilmaz, Yigithan Furkan"]
[Result "1-0"]
[ECO "C06"]
[WhiteElo "1246"]
[BlackElo "1359"]
[Annotator "NA"]
[PlyCount "129"]
[EventDate "2019.07.16"]
[EventType "team-tourn"]
[EventCountry "TUR"]
[SourceTitle "playchess.com"]
[Source "ChessBase"]
[SourceQuality "1"]
[TimeControl "5400+30"]

1. e4 {[%emt 0:00:30]} e6 {[%emt 0:00:30]} 2. d4 {[%emt 0:00:00]} d5 {[%emt 0:00:30]} 3. Nd2 {[%emt 0:00:00]} Nf6 {[%emt 0:00:30]} 4. e5 {[%emt 0:00:30]} Nfd7 {[%emt 0:00:00]} 5. Bd3 {[%emt 0:00:30]} c5 {[%emt 0:00:00]} 6. c3 {[%emt 0:00:00]} Nc6 {[%emt 0:00:30]} 7. Ne2 {[%emt 0:00:00]} Be7 {[%emt 0:02:30]} 8. Nf3 {[%emt 0:01:30]} h6 {[%emt 0:05:30]} 9. O-O {[%emt 0:01:30]} O-O {[%emt 0:00:30]} 10. Bc2 {[%emt 0:00:30]} cxd4 {[%emt 0:10:30]} 11. cxd4 {[%emt 0:00:30]} Nb4 {[%emt 0:05:30]} 12. Bb1 {[%emt 0:02:30]} Re8 {[%emt 0:12:30]} 13. a3 {[%emt 0:00:00]} Nc6 {[%emt 0:00:30]} 14. Qd3 {[%emt 0:00:00]} Nf8 {[%emt 0:05:30]} 15. Ng3 {[%emt 0:14:30]} f6 {[%emt 0:06:30]} 16. exf6 {[%emt 0:01:30]} Bxf6 {[%emt 0:01:30]} 17. Nh5 {[%emt 0:01:30]} Qe7 {[%emt 0:03:30]} 18. Nxf6+ {[%emt 0:00:30]} Qxf6 {[%emt 0:00:30]} 19. Re1 {[%emt 0:00:30]} Bd7 {[%emt 0:02:30]} 20. Ne5 {[%emt 0:00:30]} Rac8 {[%emt 0:06:30]} 21. Nxd7 {[%emt 0:02:30]} Nxd7 {[%emt 0:00:00]} 22. Be3 {[%emt 0:00:30]} Nb6 {[%emt 0:02:00]} 23. Ba2 {[%emt 0:03:30]} Rcd8 {[%emt 0:03:30]} 24. Rad1 {[%emt 0:01:30]} Qf5 {[%emt 0:02:30]} 25. Qxf5 {[%emt 0:01:30]} exf5 {[%emt 0:00:30]} 26. Bb1 {[%emt 0:00:30]} g6 {[%emt 0:02:30]} 27. Bxh6 {[%emt 0:00:30]} Nxd4 {[%emt 0:01:30]} 28. Rxe8+ {[%emt 0:01:30]} Rxe8 {[%emt 0:00:30]} 29. Be3 {[%emt 0:00:00]} Nc6 {[%emt 0:03:30]} 30. Bxb6 {[%emt 0:00:00]} axb6 {[%emt 0:00:00]} 31. Kf1 {[%emt 0:00:30]} Kg7 {[%emt 0:00:00]} 32. Rxd5 {[%emt 0:00:30]} Re7 {[%emt 0:01:30]} 33. Rb5 {[%emt 0:00:00]} Na5 {[%emt 0:00:30]} 34. Ba2 {[%emt 0:01:00]} Rc7 {[%emt 0:01:30]} 35. Rxb6 {[%emt 0:01:30]} Rc1+ {[%emt 0:00:00]} 36. Ke2 {[%emt 0:00:30]} Rc2+ {[%emt 0:00:00]} 37. Kf3 {[%emt 0:00:00]} g5 {[%emt 0:04:04]} 38. h3 {[%emt 0:01:00]} Rc5 {[%emt 0:02:00]} 39. a4 {[%emt 0:01:30]} Nc6 {[%emt 0:05:02]} 40. Rxb7+ {[%emt 0:00:30]} Kf6 {[%emt 0:00:03]} 41. g3 {[%emt 0:03:30]} g4+ {[%emt 0:05:51]} 42. hxg4 {[%emt 0:01:30]} Ne5+ {[%emt 0:00:11]} 43. Kg2 {[%emt 0:00:30]} Nxg4 {[%emt 0:00:30]} 44. Rb6+ {[%emt 0:01:30]} Ke7 {[%emt 0:02:07]} 45. Re6+ {[%emt 0:00:30]} Kd7 {[%emt 0:00:21]} 46. Re2 {[%emt 0:00:30]} Ne5 {[%emt 0:02:22]} 47. b4 {[%emt 0:00:30]} Rc4 {[%emt 0:01:01]} 48. Bxc4 {[%emt 0:00:30]} Nxc4 {[%emt 0:00:02]} 49. Rc2 {[%emt 0:00:00]} Nb6 {[%emt 0:00:30]} 50. a5 {[%emt 0:00:00]} Nd5 {[%emt 0:00:00]} 51. Rd2 {[%emt 0:00:30]} Kc6 {[%emt 0:00:00]} 52. Rxd5 {[%emt 0:00:00]} Kxd5 {[%emt 0:00:18]} 53. a6 {[%emt 0:00:00]} Kc6 {[%emt 0:00:30]} 54. b5+ {[%emt 0:00:30]} Kb6 {[%emt 0:00:00]} 55. Kf3 {[%emt 0:00:00]} f4 {[%emt 0:00:00]} 56. g4 {[%emt 0:00:00]} Kc7 {[%emt 0:00:00]} 57. g5 {[%emt 0:00:30]} Kc8 {[%emt 0:00:00]} 58. g6 {[%emt 0:00:00]} Kb8 {[%emt 0:00:19]} 59. g7 {[%emt 0:00:00]} Ka7 {[%emt 0:00:00]} 60. g8=Q {[%emt 0:00:30]} Kb6 {[%emt 0:00:00]} 61. Qb8+ {[%emt 0:00:00]} Ka5 {[%emt 0:00:00]} 62. a7 {[%emt 0:00:00]} Ka4 {[%emt 0:00:00]} 63. a8=Q+ {[%emt 0:00:00]} Kb4 {[%emt 0:00:20]} 64. Qxf4+ {[%emt 0:00:00]} Kc5 {[%emt 0:00:07]} 65. Qc6# {[%emt 0:00:00]} 1-0

[Event "Turkish Club Cup 2019"]
[Site "Konya"]
[Date "2019.07.16"]
[Round "1"]
[White "Ay, Altug"]
[Black "Celik, Musa"]
[Result "0-1"]
[ECO "B13"]
[WhiteElo "1224"]
[BlackElo "1773"]
[Annotator "NA"]
[PlyCount "90"]
[EventDate "2019.07.16"]
[EventType "team-tourn"]
[EventCountry "TUR"]
[SourceTitle "playchess.com"]
[Source "ChessBase"]
[SourceQuality "1"]
[TimeControl "5400+30"]

1. d4 {[%emt 0:00:30]} Nf6 {[%emt 0:00:30]} 2. Nf3 {[%emt 0:01:30]} e6 {[%emt 0:01:30]} 3. Bf4 {[%emt 0:01:30]} d5 {[%emt 0:02:30]} 4. e3 {[%emt 0:01:30]} c5 {[%emt 0:02:30]} 5. c3 {[%emt 0:02:30]} cxd4 {[%emt 0:05:30]} 6. exd4 {[%emt 0:02:30]} Bd6 {[%emt 0:08:30]} 7. Bxd6 {[%emt 0:05:30]} Qxd6 {[%emt 0:00:30]} 8. Nbd2 {[%emt 0:03:30]} O-O {[%emt 0:08:30]} 9. Bd3 {[%emt 0:04:30]} Nc6 {[%emt 0:04:30]} 10. O-O {[%emt 0:15:30]} e5 {[%emt 0:08:30]} 11. dxe5 {[%emt 0:02:30]} Nxe5 {[%emt 0:00:00]} 12. Nxe5 {[%emt 0:00:30]} Qxe5 {[%emt 0:00:00]} 13. Re1 {[%emt 0:01:30]} Qc7 {[%emt 0:06:30]} 14. Qc2 {[%emt 0:04:30]} Bg4 {[%emt 0:06:30]} 15. Nb3 {[%emt 0:02:30]} Rad8 {[%emt 0:08:30]} 16. Nd4 {[%emt 0:01:30]} a6 {[%emt 0:04:30]} 17. Re3 {[%emt 0:05:30]} Rfe8 {[%emt 0:06:30]} 18. Rae1 {[%emt 0:01:30]} Rxe3 {[%emt 0:06:26]} 19. Rxe3 {[%emt 0:00:00]} Bh5 {[%emt 0:02:13]} 20. h3 {[%emt 0:06:00]} Bg6 {[%emt 0:03:26]} 21. Bxg6 {[%emt 0:07:30]} hxg6 {[%emt 0:00:01]} 22. Qe2 {[%emt 0:02:30]} Rd7 {[%emt 0:05:14]} 23. f3 {[%emt 0:06:45]} Kh7 {[%emt 0:01:47]} 24. Re5 {[%emt 0:03:43]} Nh5 {[%emt 0:00:43]} 25. Re8 {[%emt 0:01:32]} Qg3 {[%emt 0:00:36]} 26. Qe1 {[%emt 0:03:15]} Qg5 {[%emt 0:03:04]} 27. Re5 {[%emt 0:02:01]} Qf6 {[%emt 0:00:22]} 28. Qe3 {[%emt 0:02:46]} Nf4 {[%emt 0:00:45]} 29. Ne2 {[%emt 0:00:27]} Nd3 {[%emt 0:01:50]} 30. Re8 {[%emt 0:02:31]} Nxb2 {[%emt 0:00:18]} 31. Qc5 {[%emt 0:01:01]} Rd8 {[%emt 0:01:59]} 32. Re7 {[%emt 0:00:24]} Rc8 {[%emt 0:00:54]} 33. Qb4 {[%emt 0:01:25]} b5 {[%emt 0:00:41]} 34. Rb7 {[%emt 0:01:37]} Na4 {[%emt 0:00:20]} 35. Qg4 {[%emt 0:00:59]} Re8 {[%emt 0:00:20]} 36. Nf4 {[%emt 0:01:22]} Nxc3 {[%emt 0:00:24]} 37. h4 {[%emt 0:01:11]} Qxf4 {[%emt 0:00:07]} 38. Qxf4 {[%emt 0:00:49]} Ne2+ {[%emt 0:00:02]} 39. Kf2 {[%emt 0:00:12]} Nxf4 {[%emt 0:00:06]} 40. Rxf7 {[%emt 0:00:00]} Nd3+ {[%emt 0:00:17]} 41. Kg3 {[%emt 0:00:05]} Nb4 {[%emt 0:00:46]} 42. Rd7 {[%emt 0:00:36]} Nxa2 {[%emt 0:00:44]} 43. Rxd5 {[%emt 0:00:04]} b4 {[%emt 0:00:00]} 44. Ra5 {[%emt 0:00:20]} b3 {[%emt 0:00:00]} 45. Rxa6 {[%emt 0:00:10]} Rb8 {[%emt 0:00:18]} 0-1